fUST/lending_fUST_20250617
["ID","MTS","AMOUNT","RATE_DAILY","PERIOD"]
[366157053,1750091432776,-500.0,0.00019177,2]
[366157055,1750091432785,-500.0,0.00019177,2]
[366157057,1750091432794,-500.0,0.00019177,2]
[366157060,1750091432804,-500.0,0.00019177,2]
[366157063,1750091432814,-375.59562552,0.00019177,2]
[366157065,1750091432824,-456.17050163,0.00019178,2]
[366157066,1750091432833,-450.21504718,0.00019178,2]
[366157067,1750091432842,-166.49,0.00019178,2]
[366157068,1750091432852,-449.56930055,0.00019178,2]
[366157070,1750091432861,-225.06001648,0.00019178,2]
[366157071,1750091432870,-427.19996169,0.00019178,2]
[366157072,1750091432882,-311.85,0.00019178,2]
[366157073,1750091432892,-460.0,0.00019178,2]
[366157075,1750091432901,-460.0,0.00019178,2]
[366157077,1750091432911,-463.39305521,0.00019178,2]
[366157079,1750091432921,-460.0,0.00019178,2]
[366157080,1750091432930,-435.98773689,0.00019178,2]
[366157082,1750091432939,-431.37337812,0.00019178,2]
[366157084,1750091432949,-552.52115906,0.00019178,2]
[366157085,1750091432958,-221.38634005,0.00019178,2]
[366157087,1750091432967,-460.0,0.00019178,2]
[366157089,1750091432977,-460.0,0.00019178,2]
[366157091,1750091432986,-464.3640498,0.00019178,2]
[366157093,1750091432995,-348.08541078,0.00019178,2]
[366157095,1750091433004,-460.0,0.00019178,2]
[366157096,1750091433014,-462.48138492,0.00019178,2]
[366157098,1750091433024,-460.33405717,0.00019178,2]
[366157100,1750091433034,-460.0,0.00019178,2]
[366157102,1750091433044,-43.10628076,0.00019178,2]
[366157104,1750091433057,-333.26995759,0.00019178,2]
[366157105,1750091433066,-438.8802909,0.00019178,2]
[366157107,1750091433075,-433.52729192,0.00019178,2]
[366157108,1750091433085,-443.67260528,0.00019178,2]
[366157110,1750091433094,-469.8614937,0.00019178,2]
[366157111,1750091433103,-460.0,0.00019178,2]
[366157112,1750091433114,-460.0,0.00019178,2]
[366157113,1750091433124,-556.42,0.00019178,2]
[366157114,1750091433135,-220.78875742,0.00019178,2]
[366157115,1750091433145,-430.75743754,0.00019178,2]
[366157116,1750091433155,-460.0,0.00019178,2]
[366157117,1750091433165,-96.36483791,0.00019178,2]
[366157118,1750091433177,-381.52263469,0.00019178,2]
[366157119,1750091433187,-460.0,0.00019178,2]
[366157120,1750091433197,-460.0,0.00019178,2]
[366157121,1750091433207,-656.67,0.00019178,2]
[366157122,1750091433217,-460.0,0.00019178,2]
[366157123,1750091433227,-460.0,0.00019178,2]
[366157124,1750091433236,-452.29346793,0.00019178,2]
[366157125,1750091433246,-460.0,0.00019178,2]
[366157126,1750091433256,-460.0,0.00019178,2]
[366157127,1750091433265,-404.20560324,0.00019178,2]
[366157128,1750091433275,-441.38031523,0.00019178,2]
[366157129,1750091433285,-460.0,0.00019178,2]
[366157130,1750091433296,-460.0,0.00019178,2]
[366157131,1750091433306,-457.2389027,0.00019178,2]
[366157132,1750091433315,-460.0,0.00019178,2]
[366157133,1750091433325,-440.0,0.00019178,2]
[366157134,1750091433336,-446.80107923,0.00019178,2]
[366157135,1750091433345,-460.0,0.00019178,2]
[366157136,1750091433355,-460.0,0.00019178,2]
[366157137,1750091433365,-370.0,0.00019178,2]
[366157138,1750091433376,-446.94978684,0.00019178,2]
[366157139,1750091433386,-445.36388054,0.00019178,2]
[366157140,1750091433396,-460.0,0.00019178,2]
[366157141,1750091433405,-448.89144687,0.00019178,2]
[366157142,1750091433415,-446.13139522,0.00019178,2]
[366157143,1750091433425,-460.0,0.00019178,2]
[366157144,1750091433435,-452.8380322,0.00019178,2]
[366157145,1750091433445,-460.0,0.00019178,2]
[366157146,1750091433455,-586.27813742,0.00019178,2]
[366157147,1750091433465,-263.91388622,0.00019178,2]
[366157148,1750091433475,-460.0,0.00019178,2]
[366157149,1750091433484,-434.79649642,0.00019178,2]
[366157150,1750091433496,-444.78982379,0.00019178,2]
[366157151,1750091433506,-465.93396944,0.00019178,2]
[366157152,1750091433515,-442.34589276,0.00019178,2]
[366157153,1750091433525,-442.42411131,0.00019178,2]
[366157154,1750091433535,-460.0,0.00019178,2]
[366157155,1750091433546,-460.0,0.00019178,2]
[366157156,1750091433560,-515.9,0.00019178,2]
[366157157,1750091433570,-460.0,0.00019178,2]
[366157158,1750091433579,-460.0,0.00019178,2]
[366157159,1750091433590,-460.0,0.00019178,2]
[366157160,1750091433601,-460.0,0.00019178,2]
[366157161,1750091433611,-460.0,0.00019178,2]
[366157162,1750091433621,-452.79059425,0.00019178,2]
[366157163,1750091433633,-460.0,0.00019178,2]
[366157164,1750091433644,-460.0,0.00019178,2]
[366157165,1750091433653,-460.0,0.00019178,2]
[366157166,1750091433664,-436.06701784,0.00019178,2]
[366157167,1750091433675,-467.44249337,0.00019178,2]
[366157168,1750091433684,-447.08074469,0.00019178,2]
[366157169,1750091433694,-441.53546709,0.00019178,2]
[366157170,1750091433703,-447.2184958,0.00019178,2]
[366157171,1750091433713,-444.03651631,0.00019178,2]
[366157172,1750091433723,-850.86,0.00019178,2]
[366157173,1750091433733,-454.9756487,0.00019178,2]
[366157174,1750091433743,-460.0,0.00019178,2]
[366157175,1750091433752,-773.57,0.00019178,2]
[366157176,1750091433763,-460.0,0.00019178,2]
[366157177,1750091433773,-649.57,0.00019178,2]
[366157178,1750091433782,-424.99634785,0.00019178,2]
[366157179,1750091433792,-460.0,0.00019178,2]
[366157180,1750091433802,-448.86369648,0.00019178,2]
[366157181,1750091433813,-626.8,0.00019178,2]
[366157182,1750091433823,-454.29137975,0.00019178,2]
[366157183,1750091433833,-460.0,0.00019178,2]
[366157184,1750091433842,-460.0,0.00019178,2]
[366157185,1750091433852,-586.63,0.00019178,2]
[366157186,1750091433862,-460.0,0.00019178,2]
[366157187,1750091433871,-460.0,0.00019178,2]
[366157188,1750091433882,-500.0,0.00019178,2]
[366157189,1750091433892,-180.360393,0.00019178,2]
[366157190,1750091433901,-402.07,0.00019452,4]
[366157191,1750091433911,-460.0,0.00019452,4]
[366157192,1750091433921,-460.0,0.00019452,4]
[366157193,1750091433931,-460.0,0.00019452,4]
[366157194,1750091433941,-556.42,0.00019452,4]
[366157195,1750091434076,-460.0,0.00019452,4]
[366157196,1750091434089,-460.0,0.00019452,4]
[366157197,1750091434099,-656.67,0.00019452,4]
[366157198,1750091434109,-460.0,0.00019452,4]
[366157199,1750091434119,-460.0,0.00019452,4]
[366157200,1750091434129,-460.0,0.00019452,4]
[366157201,1750091434140,-460.0,0.00019452,4]
[366157202,1750091434150,-460.0,0.00019452,4]
[366157203,1750091434160,-420.0,0.00019452,4]
[366157204,1750091434170,-460.0,0.00019452,4]
[366157205,1750091434180,-460.0,0.00019452,4]
[366157206,1750091434190,-460.0,0.00019452,4]
[366157207,1750091434200,-460.0,0.00019452,4]
[366157208,1750091434209,-460.0,0.00019452,4]
[366157209,1750091434219,-515.9,0.00019452,4]
[366157210,1750091434230,-460.0,0.00019452,4]
[366157211,1750091434240,-460.0,0.00019452,4]
[366157212,1750091434250,-420.0,0.00019452,4]
[366157213,1750091434261,-460.0,0.00019452,4]
[366157214,1750091434271,-850.86,0.00019452,4]
[366157215,1750091434281,-773.57,0.00019452,4]
[366157216,1750091434292,-649.57,0.00019452,4]
[366157217,1750091434303,-460.0,0.00019452,4]
[366157218,1750091434312,-626.8,0.00019452,4]
[366157219,1750091434322,-461.74512866,0.00019452,4]
[366157220,1750091434332,-586.63,0.00019452,4]
[366157221,1750091434341,-460.0,0.00019452,4]
[366157222,1750091434351,-460.0,0.00019452,4]
[366157223,1750091434361,-500.0,0.00019452,2]
[366157224,1750091434371,-151.0,0.00019693,2]
[366157225,1750091434383,-290.29984162,0.00019693,2]
[366157226,1750091434394,-179.83814567,0.00019699,2]
[366157227,1750091434403,-400.0,0.00019726,4]
[366157228,1750091434414,-460.0,0.00019726,4]
[366157229,1750091434424,-400.0,0.00019726,4]
[366157230,1750091434434,-556.42,0.00019726,4]
[366157231,1750091434444,-460.0,0.00019726,4]
[366157232,1750091434454,-460.0,0.00019726,4]
[366157233,1750091434464,-656.67,0.00019726,4]
[366157234,1750091434474,-460.0,0.00019726,4]
[366157235,1750091434484,-460.0,0.00019726,4]
[366157236,1750091434494,-460.0,0.00019726,4]
[366157237,1750091434505,-460.0,0.00019726,4]
[366157238,1750091434515,-192.85502742,0.00019726,4]
[366157239,1750091434526,-460.0,0.00019726,4]
[366157240,1750091434536,-460.0,0.00019726,4]
[366157241,1750091434547,-460.0,0.00019726,4]
[366157242,1750091434558,-460.0,0.00019726,4]
[366157243,1750091434569,-460.0,0.00019726,4]
[366157244,1750091434578,-515.9,0.00019726,4]
[366157245,1750091434588,-460.0,0.00019726,4]
[366157246,1750091434600,-235.89843857,0.00019726,4]
[366157247,1750091434610,-850.86,0.00019726,4]
[366157248,1750091434621,-773.57,0.00019726,4]
[366157249,1750091434632,-649.57,0.00019726,4]
[366157250,1750091434642,-460.0,0.00019726,4]
[366157251,1750091434652,-626.8,0.00019726,4]
[366157252,1750091434661,-586.63,0.00019726,4]
[366157253,1750091434671,-460.0,0.00019726,4]
[366157254,1750091434680,-580.36,0.00019726,4]
[366157255,1750091434689,-500.0,0.00019936,2]
[366157256,1750091434699,-780.31575199,0.0002,2]
[366157257,1750091434708,-460.0,0.0002,4]
[366157258,1750091434717,-556.42,0.0002,4]
[366157259,1750091434727,-460.0,0.0002,4]
[366157260,1750091434737,-460.0,0.0002,4]
[366157261,1750091434747,-656.67,0.0002,4]
[366157262,1750091434757,-460.0,0.0002,4]
[366157263,1750091434767,-460.0,0.0002,4]
[366157264,1750091434777,-460.0,0.0002,4]
[366157265,1750091434788,-460.0,0.0002,4]
[366157266,1750091434798,-282.09,0.0002,4]
[366157267,1750091434808,-460.0,0.0002,4]
[366157268,1750091434817,-460.0,0.0002,4]
[366157269,1750091434827,-8765.92293864,0.0002,2]
[366157270,1750091434838,-2685.91937034,0.0002,2]
[366157271,1750091434847,-6321.55639243,0.0002,2]
[366157272,1750091434856,-1119.22175055,0.0002,2]
[366157273,1750091434866,-460.0,0.0002,4]
[366157274,1750091434876,-460.0,0.0002,4]
[366157275,1750091434885,-515.9,0.0002,4]
[366157276,1750091434896,-400.0,0.0002,4]
[366157277,1750091434905,-850.86,0.0002,4]
[366157278,1750091434915,-773.57,0.0002,4]
[366157279,1750091434924,-649.57,0.0002,4]
[366157280,1750091434934,-433.33,0.0002,4]
[366157281,1750091434944,-626.8,0.0002,4]
[366157282,1750091434954,-586.63,0.0002,4]
[366157283,1750091434964,-460.0,0.0002,4]
[366157284,1750091434976,-458.980606,0.00020187,2]
[366157285,1750091434985,-460.0,0.00020273,4]
[366157286,1750091434995,-556.42,0.00020273,4]
[366157287,1750091435005,-460.0,0.00020273,4]
[366157288,1750091435014,-460.0,0.00020273,4]
[366157289,1750091435024,-656.67,0.00020273,4]
[366157290,1750091435033,-460.0,0.00020273,4]
[366157291,1750091435043,-460.0,0.00020273,4]
[366157292,1750091435053,-460.0,0.00020273,4]
[366157293,1750091435063,-460.0,0.00020273,4]
[366157294,1750091435072,-460.0,0.00020273,4]
[366157295,1750091435082,-460.0,0.00020273,4]
[366157296,1750091435091,-460.0,0.00020273,4]
[366157297,1750091435101,-460.0,0.00020273,4]
[366157298,1750091435110,-515.9,0.00020273,4]
[366157299,1750091435120,-850.86,0.00020273,4]
[366157300,1750091435129,-773.57,0.00020273,4]
[366157301,1750091435139,-649.57,0.00020273,4]
[366157302,1750091435149,-626.8,0.00020273,4]
[366157303,1750091435159,-586.63,0.00020273,4]
[366157304,1750091435169,-460.0,0.00020273,4]
[366157305,1750091435179,-275.23822898,0.00020465,2]
[366157306,1750091435188,-164.989,0.00020475,2]
[366157307,1750091435198,-500.0,0.00020484,2]
[366157308,1750091435207,-460.0,0.00020547,4]
[366157309,1750091435217,-556.42,0.00020547,4]
[366157310,1750091435227,-460.0,0.00020547,4]
[366157311,1750091435236,-460.0,0.00020547,4]
[366157312,1750091435246,-656.67,0.00020547,4]
[366157313,1750091435255,-460.0,0.00020547,4]
[366157314,1750091435266,-460.0,0.00020547,4]
[366157315,1750091435276,-460.0,0.00020547,4]
[366157316,1750091435286,-460.0,0.00020547,4]
[366157317,1750091435295,-460.0,0.00020547,4]
[366157318,1750091435305,-460.0,0.00020547,4]
[366157319,1750091435315,-460.0,0.00020547,4]
[366157320,1750091435324,-515.9,0.00020547,4]
[366157321,1750091435335,-460.0,0.00020547,4]
[366157322,1750091435344,-850.86,0.00020547,4]
[366157323,1750091435354,-773.57,0.00020547,4]
[366157324,1750091435364,-649.57,0.00020547,4]
[366157325,1750091435373,-626.8,0.00020547,4]
[366157326,1750091435383,-586.63,0.00020547,4]
[366157327,1750091435393,-460.0,0.00020547,4]
[366157328,1750091435403,-424.54874296,0.00020735,2]
[366157329,1750091435413,-160.0,0.00020735,2]
[366157330,1750091435422,-229.90125484,0.00020735,2]
[366157331,1750091435432,-835.67987521,0.00020747,2]
[366157332,1750091435442,-1323.71,0.00020782,2]
[366157333,1750091435452,-460.0,0.00020821,4]
[366157334,1750091435462,-556.42,0.00020821,4]
[366157335,1750091435472,-460.0,0.00020821,4]
[366157336,1750091435481,-460.0,0.00020821,4]
[366157337,1750091435491,-656.67,0.00020821,4]
[366157338,1750091435500,-460.0,0.00020821,4]
[366157339,1750091435510,-387.38392928,0.00020821,4]
[366157340,1750091435519,-460.0,0.00020821,4]
[366157341,1750091435529,-460.0,0.00020821,4]
[366157342,1750091435539,-460.0,0.00020821,4]
[366157343,1750091435552,-460.0,0.00020821,4]
[366157344,1750091435562,-460.0,0.00020821,4]
[366157345,1750091435572,-515.9,0.00020821,4]
[366157346,1750091435581,-460.0,0.00020821,4]
[366157347,1750091435592,-850.86,0.00020821,4]
[366157348,1750091435603,-773.57,0.00020821,4]
[366157349,1750091435613,-649.57,0.00020821,4]
[366157350,1750091435623,-626.8,0.00020821,4]
[366157351,1750091435637,-586.63,0.00020821,4]
[366157352,1750091435648,-460.0,0.00020821,4]
[366157353,1750091435658,-420.0,0.00020896,2]
[366157354,1750091435668,-460.0,0.00021095,4]
[366157355,1750091435678,-556.42,0.00021095,4]
[366157356,1750091435687,-325.16641743,0.00021095,4]
[366157357,1750091435697,-460.0,0.00021095,4]
[366157358,1750091435707,-656.67,0.00021095,4]
[366157359,1750091435716,-460.0,0.00021095,4]
[366157360,1750091435725,-460.0,0.00021095,4]
[366157361,1750091435735,-188.6,0.00021095,4]
[366157362,1750091435744,-460.0,0.00021095,4]
[366157363,1750091435754,-460.0,0.00021095,4]
[366157364,1750091435763,-460.0,0.00021095,4]
[366157365,1750091435774,-515.9,0.00021095,4]
[366157366,1750091435783,-460.0,0.00021095,4]
[366157367,1750091435793,-850.86,0.00021095,4]
[366157368,1750091435803,-773.57,0.00021095,4]
[366157369,1750091435813,-649.57,0.00021095,4]
[366157370,1750091435822,-626.8,0.00021095,4]
[366157371,1750091435831,-586.63,0.00021095,4]
[366157372,1750091435841,-460.0,0.00021095,4]
[366157373,1750091435850,-460.0,0.00021369,4]
[366157374,1750091435860,-556.42,0.00021369,4]
[366157375,1750091435870,-460.0,0.00021369,4]
[366157376,1750091435881,-656.67,0.00021369,4]
[366157377,1750091435891,-460.0,0.00021369,4]
[366157378,1750091435900,-460.0,0.00021369,4]
[366157379,1750091435910,-460.0,0.00021369,4]
[366157380,1750091435919,-460.0,0.00021369,4]
[366157381,1750091435929,-460.0,0.00021369,4]
[366157382,1750091435938,-515.9,0.00021369,4]
[366157383,1750091435948,-460.0,0.00021369,4]
[366157384,1750091435957,-850.86,0.00021369,4]
[366157385,1750091435967,-773.57,0.00021369,4]
[366157386,1750091435976,-649.57,0.00021369,4]
[366157387,1750091435985,-626.8,0.00021369,4]
[366157388,1750091435995,-586.63,0.00021369,4]
[366157389,1750091436005,-460.0,0.00021369,4]
[366157390,1750091436014,-1040.16836332,0.000215,2]
[366157391,1750091436024,-460.0,0.00021643,4]
[366157392,1750091436034,-556.42,0.00021643,4]
[366157393,1750091436044,-460.0,0.00021643,4]
[366157394,1750091436054,-656.67,0.00021643,4]
[366157395,1750091436063,-460.0,0.00021643,4]
[366157396,1750091436073,-460.0,0.00021643,4]
[366157397,1750091436084,-460.0,0.00021643,4]
[366157398,1750091436095,-460.0,0.00021643,4]
[366157399,1750091436105,-460.0,0.00021643,4]
[366157400,1750091436116,-515.9,0.00021643,4]
[366157401,1750091436125,-460.0,0.00021643,4]
[366157402,1750091436135,-850.86,0.00021643,4]
[366157403,1750091436144,-773.57,0.00021643,4]
[366157404,1750091436153,-649.57,0.00021643,4]
[366157405,1750091436163,-626.8,0.00021643,4]
[366157406,1750091436172,-586.63,0.00021643,4]
[366157407,1750091436182,-460.0,0.00021643,4]
[366157408,1750091436192,-460.0,0.00021917,4]
[366157409,1750091436203,-556.42,0.00021917,4]
[366157410,1750091436213,-460.0,0.00021917,4]
[366157411,1750091436222,-656.67,0.00021917,4]
[366157412,1750091436232,-460.0,0.00021917,4]
[366157413,1750091436241,-460.0,0.00021917,4]
[366157414,1750091436251,-460.0,0.00021917,4]
[366157415,1750091436261,-460.0,0.00021917,4]
[366157416,1750091436271,-460.0,0.00021917,4]
[366157417,1750091436281,-515.9,0.00021917,4]
[366157418,1750091436291,-460.0,0.00021917,4]
[366157419,1750091436300,-850.86,0.00021917,4]
[366157420,1750091436310,-773.57,0.00021917,4]
[366157421,1750091436320,-649.57,0.00021917,4]
[366157422,1750091436329,-626.8,0.00021917,4]
[366157423,1750091436339,-586.63,0.00021917,4]
[366157424,1750091436349,-460.0,0.00021917,4]
[366157425,1750091436359,-191.12306189,0.00021974,2]
[366157426,1750091436369,-153838.19170376,0.00021995,2]
[366157427,1750091436380,-5000.0,0.00022032,2]
[366157428,1750091436391,-160.47264137,0.00022105,5]
[366157429,1750091436402,-158.73133482,0.00022105,5]
[366157430,1750091436412,-460.0,0.00022191,4]
[366157431,1750091436422,-556.42,0.00022191,4]
[366157432,1750091436432,-656.67,0.00022191,4]
[366157433,1750091436441,-460.0,0.00022191,4]
[366157434,1750091436451,-460.0,0.00022191,4]
[366157435,1750091436460,-460.0,0.00022191,4]
[366157436,1750091436470,-460.0,0.00022191,4]
[366157437,1750091436479,-515.9,0.00022191,4]
[366157438,1750091436489,-460.0,0.00022191,4]
[366157439,1750091436498,-850.86,0.00022191,4]
[366157440,1750091436508,-773.57,0.00022191,4]
[366157441,1750091436518,-649.57,0.00022191,4]
[366157442,1750091436528,-626.8,0.00022191,4]
[366157443,1750091436538,-586.63,0.00022191,4]
[366157444,1750091436552,-460.0,0.00022191,4]
[366157445,1750091436561,-460.0,0.00022465,4]
[366157446,1750091436571,-556.42,0.00022465,4]
[366157447,1750091436581,-656.67,0.00022465,4]
[366157448,1750091436592,-609.34,0.00022465,4]
[366157449,1750091436602,-460.0,0.00022465,4]
[366157450,1750091436611,-460.0,0.00022465,4]
[366157451,1750091436620,-412.33,0.00022465,4]
[366157452,1750091436634,-515.9,0.00022465,4]
[366157453,1750091436644,-850.86,0.00022465,4]
[366157454,1750091436653,-773.57,0.00022465,4]
[366157455,1750091436663,-649.57,0.00022465,4]
[366157456,1750091436672,-626.8,0.00022465,4]
[366157457,1750091436682,-586.63,0.00022465,4]
[366157458,1750091436692,-313.05,0.00022465,4]
[366157459,1750091436702,-240.0,0.00022495,2]
[366157460,1750091436711,-2647.43,0.00022672,2]
[366157461,1750091436721,-460.0,0.00022739,4]
[366157462,1750091436730,-556.42,0.00022739,4]
[366157463,1750091436740,-656.67,0.00022739,4]
[366157464,1750091436749,-395.98295213,0.00022739,4]
[366157465,1750091436759,-460.0,0.00022739,4]
[366157466,1750091436768,-515.9,0.00022739,4]
[366157467,1750091436778,-850.86,0.00022739,4]
[366157468,1750091436787,-773.57,0.00022739,4]
[366157469,1750091436797,-649.57,0.00022739,4]
[366157470,1750091436807,-626.8,0.00022739,4]
[366157471,1750091436816,-586.63,0.00022739,4]
[366157472,1750091436825,-989.0,0.00022815,2]
[366157473,1750091436835,-500.0,0.00022892,2]
[366157474,1750091436845,-160.0,0.00022895,3]
[366157475,1750091436855,-989.0,0.00022997,2]
[366157476,1750091436864,-14124.78219425,0.00023,20]
[366157477,1750091436874,-460.0,0.00023013,4]
[366157478,1750091436885,-556.42,0.00023013,4]
[366157479,1750091436894,-656.67,0.00023013,4]
[366157480,1750091436903,-251.97197712,0.00023013,4]
[366157481,1750091436913,-515.9,0.00023013,4]
[366157482,1750091436922,-850.86,0.00023013,4]
[366157483,1750091436931,-773.57,0.00023013,4]
[366157484,1750091436940,-649.57,0.00023013,4]
[366157485,1750091437062,-626.8,0.00023013,4]
[366157486,1750091437072,-586.63,0.00023013,4]
[366157487,1750091437082,-158.66118946,0.00023068,2]
[366157488,1750091437091,-829.06,0.000231,2]
[366157489,1750091437101,-989.0,0.00023119,2]
[366157490,1750091437111,-207.4,0.00023179,2]
[366157491,1750091437120,-500.0,0.00023179,2]
[366157492,1750091437131,-500.0,0.00023179,2]
[366157493,1750091437140,-500.0,0.00023179,2]
[366157494,1750091437149,-500.0,0.00023179,2]
[366157495,1750091437159,-500.0,0.00023179,2]
[366157496,1750091437169,-500.0,0.00023179,2]
[366157497,1750091437180,-500.0,0.00023179,2]
[366157498,1750091437189,-500.0,0.00023179,2]
[366157499,1750091437199,-500.0,0.00023179,2]
[366157500,1750091437209,-500.0,0.00023179,2]
[366157501,1750091437218,-500.0,0.00023179,2]
[366157502,1750091437228,-500.0,0.00023179,2]
[366157503,1750091437238,-500.0,0.00023179,2]
[366157504,1750091437248,-500.0,0.00023179,2]
[366157505,1750091437258,-500.0,0.00023179,2]
[366157506,1750091437267,-500.0,0.00023179,2]
[366157507,1750091437277,-500.0,0.00023179,2]
[366157508,1750091437286,-500.0,0.00023179,2]
[366157509,1750091437295,-500.0,0.00023179,2]
[366157510,1750091437305,-500.0,0.00023179,2]
[366157511,1750091437314,-500.0,0.00023179,2]
[366157512,1750091437324,-500.0,0.00023179,2]
[366157513,1750091437333,-500.0,0.00023179,2]
[366157514,1750091437343,-500.0,0.00023179,2]
[366157515,1750091437353,-500.0,0.00023179,2]
[366157516,1750091437363,-500.0,0.00023179,2]
[366157517,1750091437373,-500.0,0.00023179,2]
[366157518,1750091437384,-500.0,0.00023179,2]
[366157519,1750091437395,-500.0,0.00023179,2]
[366157520,1750091437404,-500.0,0.00023179,2]
[366157521,1750091437414,-168.0,0.00023183,2]
[366157522,1750091437423,-2160.0,0.00023192,2]
[366157523,1750091437435,-653.0,0.00023192,2]
[366157524,1750091437445,-406.0,0.00023192,2]
[366157525,1750091437454,-460.0,0.00023287,4]
[366157526,1750091437465,-556.42,0.00023287,4]
[366157527,1750091437474,-656.67,0.00023287,4]
[366157528,1750091437484,-515.9,0.00023287,4]
[366157529,1750091437493,-850.86,0.00023287,4]
[366157530,1750091437503,-773.57,0.00023287,4]
[366157531,1750091437513,-649.57,0.00023287,4]
[366157532,1750091437523,-626.8,0.00023287,4]
[366157533,1750091437533,-586.63,0.00023287,4]
[366157534,1750091437544,-431.49474757,0.00023288,2]
[366157535,1750091437559,-158.66118946,0.0002337,2]
[366157536,1750091437569,-1000.0,0.0002344,2]
[366157537,1750091437578,-460.0,0.00023561,4]
[366157538,1750091437590,-556.42,0.00023561,4]
[366157539,1750091437600,-656.67,0.00023561,4]
[366157540,1750091437609,-515.9,0.00023561,4]
[366157541,1750091437619,-850.86,0.00023561,4]
[366157542,1750091437632,-773.57,0.00023561,4]
[366157543,1750091437643,-649.57,0.00023561,4]
[366157544,1750091437653,-626.8,0.00023561,4]
[366157545,1750091437663,-586.63,0.00023561,4]
[366157546,1750091437673,-47332.95894479,0.00023613,7]
[366157547,1750091437683,-43700.83025172,0.00023687,2]
[366157548,1750091437692,-166.70727634,0.000237,4]
[366157549,1750091437702,-166.70727634,0.000237,4]
[366157550,1750091437712,-166.70727634,0.000237,4]
[366157551,1750091437721,-166.70727634,0.000237,4]
[366157552,1750091437731,-166.70727634,0.000237,4]
[366157553,1750091437740,-166.70727634,0.000237,4]
[366157554,1750091437750,-166.70727634,0.000237,4]
[366157555,1750091437760,-166.70727634,0.000237,4]
[366157556,1750091437770,-166.70727634,0.000237,4]
[366157557,1750091437779,-166.70727634,0.000237,4]
[366157558,1750091437790,-166.70727634,0.000237,4]
[366157559,1750091437799,-166.70727634,0.000237,4]
[366157560,1750091437809,-166.70727634,0.000237,4]
[366157561,1750091437819,-166.70727634,0.000237,4]
[366157562,1750091437829,-166.70727634,0.000237,4]
[366157563,1750091437839,-166.70727634,0.000237,4]
[366157564,1750091437849,-166.70727634,0.000237,4]
[366157565,1750091437859,-166.70727634,0.000237,4]
[366157566,1750091437869,-166.70727634,0.000237,4]
[366157567,1750091437878,-166.7,0.000237,4]
[366157568,1750091437887,-388.9836448,0.000237,4]
[366157569,1750091437897,-388.9836448,0.000237,4]
[366157570,1750091437907,-388.9836448,0.000237,4]
[366157571,1750091437916,-388.9836448,0.000237,4]
[366157572,1750091437925,-388.9836448,0.000237,4]
[366157573,1750091437935,-388.9836448,0.000237,4]
[366157574,1750091437944,-388.9836448,0.000237,4]
[366157575,1750091437954,-388.9836448,0.000237,4]
[366157576,1750091437964,-388.9836448,0.000237,4]